lending/lending_fUSD_20260223
["ID","MTS","AMOUNT","RATE_DAILY","PERIOD"]
[406365559,1771807839816,-2411.64893281,0.0001661,2]
[406365560,1771807839826,-300.0,0.0001661,2]
[406365561,1771807839836,-195.0,0.0001661,2]
[406365562,1771807839847,-600.0,0.0001661,2]
[406365563,1771807839858,-600.0,0.0001661,2]
[406365564,1771807839867,-250.0,0.0001661,2]
[406365565,1771807839877,-195.0,0.0001661,2]
[406365566,1771807839887,-250.0,0.0001661,2]
[406365567,1771807839897,-164.26,0.00016665,30]
[406365568,1771807839907,-51848.3901,0.000167,2]
[406365569,1771807839917,-45223.3325,0.000167,2]
[406365570,1771807839927,-5307.8847,0.000167,2]
[406365571,1771807839937,-369.06,0.00016922,2]
[406365572,1771807839947,-9999.99,0.00016922,2]
[406365573,1771807839957,-194.98,0.00017352,2]
[406365574,1771807839967,-200.0,0.00017503,2]
[406365575,1771807839976,-150.0,0.00017534,2]
[406365576,1771807839986,-150.0,0.00017725,2]
[406365577,1771807839996,-150.0,0.00017725,2]
[406365578,1771807840006,-150.0,0.00017725,2]
[406365579,1771807840016,-150.0,0.00017725,2]
[406365580,1771807840028,-150.0,0.00017725,2]
[406365581,1771807840039,-150.0,0.00017725,2]
[406365582,1771807840049,-150.0,0.00017725,2]
[406365583,1771807840061,-150.0,0.0001778,2]
[406365584,1771807840071,-150.0,0.0001778,2]
[406365585,1771807840082,-150.0,0.0001778,2]
[406365586,1771807840092,-150.0,0.0001778,2]
[406365587,1771807840102,-150.0,0.0001778,2]
[406365588,1771807840117,-150.0,0.0001778,2]
[406365589,1771807840127,-4084.2084,0.000178,2]
[406365590,1771807840137,-637.54895458,0.00017808,2]
[406365591,1771807840148,-637.54895458,0.00017808,2]
[406365592,1771807840158,-637.54895458,0.00017808,2]
[406365593,1771807840168,-637.54895458,0.00017808,2]
[406365594,1771807840178,-637.54895458,0.00017808,2]
[406365595,1771807840189,-637.54895458,0.00017808,2]
[406365596,1771807840199,-637.54895458,0.00017808,2]
[406365597,1771807840210,-637.54895458,0.00017808,2]
[406365598,1771807840220,-637.54895458,0.00017808,2]
[406365599,1771807840231,-637.54895458,0.00017808,2]
[406365600,1771807840241,-637.54895458,0.00017808,2]
[406365601,1771807840252,-637.54895458,0.00017808,2]
[406365602,1771807840262,-637.54895458,0.00017808,2]
[406365603,1771807840273,-637.54895458,0.00017808,2]
[406365604,1771807840283,-637.54895458,0.00017808,2]
[406365605,1771807840293,-637.54895458,0.00017808,2]
[406365606,1771807840304,-637.54895458,0.00017808,2]
[406365607,1771807840314,-637.54895458,0.00017808,2]
[406365608,1771807840324,-637.54895458,0.00017808,2]
[406365609,1771807840334,-637.54895458,0.00017808,2]
[406365610,1771807840344,-637.54895458,0.00017808,2]
[406365611,1771807840354,-637.54895458,0.00017808,2]
[406365612,1771807840364,-637.54895458,0.00017808,2]
[406365613,1771807840374,-637.54895458,0.00017808,2]
[406365614,1771807840384,-637.54895458,0.00017808,2]
[406365615,1771807840394,-637.54895458,0.00017808,2]
[406365616,1771807840404,-683.08816561,0.00017808,2]
[406365617,1771807840413,-683.08816561,0.00017808,2]
[406365618,1771807840423,-683.08816561,0.00017808,2]
[406365619,1771807840434,-683.08816561,0.00017808,2]
[406365620,1771807840443,-683.08816561,0.00017808,2]
[406365621,1771807840453,-683.08816561,0.00017808,2]
[406365622,1771807840463,-683.08816561,0.00017808,2]
[406365623,1771807840473,-150.0,0.00017835,2]
[406365624,1771807840483,-150.0,0.00017835,2]
[406365625,1771807840496,-150.0,0.00017835,2]
[406365626,1771807840509,-200.0,0.00017835,2]
[406365627,1771807840519,-200.0,0.00017835,2]
[406365628,1771807840530,-150.0,0.00017835,2]
[406365629,1771807840540,-433.59,0.00017845,2]
[406365630,1771807840552,-150.0,0.00017889,2]
[406365631,1771807840562,-150.0,0.00017889,2]
[406365632,1771807840573,-150.0,0.00017889,2]
[406365633,1771807840584,-1000.0,0.000179,2]
[406365634,1771807840594,-166.66,0.00017905,2]
[406365635,1771807840605,-185.7342369,0.00017944,2]
[406365636,1771807840615,-150.0,0.00017944,2]
[406365637,1771807840624,-150.0,0.00017944,2]
[406365638,1771807840634,-151.0,0.00017997,2]
[406365639,1771807840644,-250.0,0.00017999,2]
[406365640,1771807840654,-250.0,0.00017999,2]
[406365641,1771807840663,-500.0,0.00017999,2]
[406365642,1771807840673,-500.0,0.00017999,2]
[406365643,1771807840682,-500.0,0.00017999,2]
[406365644,1771807840692,-500.0,0.00017999,2]
[406365645,1771807840702,-1578735.35841989,0.00018,2]
[406365646,1771807840739,-498.56809228,0.00018,2]
[406365647,1771807840755,-946.05260061,0.00018,2]
[406365653,1771807842659,-511.0,0.00018,2]
[406365654,1771807842897,-789.97337317,0.00018,2]
[406365655,1771807842909,-119258.46050057,0.00018,2]
[406365678,1771807845258,-27403.81449512,0.00018,2]
[406365684,1771807845470,-253.0814027,0.00018,2]
[406365685,1771807845482,-40422.59999999,0.00018,2]
[406365686,1771807845494,-13577.7655818,0.00018,2]
[406365792,1771808649140,-500.0,0.0001511,2]
[406365793,1771808649168,-563.0,0.0001521,2]
[406365794,1771808649199,-507.0,0.0001521,2]
[406365795,1771808671165,150.0,0.000152,2]
[406365796,1771808712329,563.41296,0.0001521,2]
[406365811,1771808783994,528.6,0.00012164,2]
[406365812,1771808784203,528.6,0.00012377,2]
[406365813,1771808784400,528.6,0.00012591,2]
[406365814,1771808784591,528.6,0.00012804,2]
[406365815,1771808784806,528.6,0.00013017,2]
[406365816,1771808785022,528.6,0.00013231,2]
[406365817,1771808785219,528.6,0.00013444,2]
[406365818,1771808785408,528.6,0.00013658,2]
[406365819,1771808785613,528.6,0.00013871,2]
[406365820,1771808785837,528.6,0.00014084,2]
[406365821,1771808786034,528.6,0.00014298,2]
[406365822,1771808786279,528.6,0.00014511,2]
[406365823,1771808786482,528.6,0.00014725,2]
[406365824,1771808786679,528.6,0.00014938,2]
[406365825,1771808786891,528.6,0.00015151,2]
[406365826,1771808787109,528.6,0.00015365,2]
[406365866,1771809031491,-528.6,0.00015578,2]
[406365867,1771809031501,-174.2148,0.00015656,2]
[406365868,1771809031513,-325.7852,0.00015656,2]
[406365870,1771809031522,-150.0,0.0001569,2]
[406365871,1771809031532,-195.0,0.0001572,2]
[406365872,1771809031559,-600.0,0.0001572,2]
[406365874,1771809031569,-528.6,0.00015792,2]
[406365875,1771809031579,-150.0,0.0001581,30]
[406365876,1771809031589,-200.0,0.00015811,2]
[406365877,1771809031599,-1595.33,0.00015974,2]
[406365878,1771809031609,-176.809,0.00015974,2]
[406365879,1771809031619,-528.6,0.00016005,2]
[406365880,1771809031628,-298.5866,0.00016098,2]
[406365881,1771809031641,-901.4134,0.00016098,2]
[406365882,1771809031650,-342.50862226,0.00016099,2]
[406365883,1771809031659,-164.32049904,0.00016099,2]
[406365884,1771809031669,-459.36755564,0.00016099,2]
[406365885,1771809031679,-150.0,0.00016116,2]
[406365886,1771809031690,-500.0,0.00016116,2]
[406365887,1771809031699,-191.19748543,0.00016116,2]
[406365888,1771809031710,-150.0,0.00016116,2]
[406365889,1771809031719,-173.05559683,0.00016116,2]
[406365890,1771809031732,-326.94440317,0.00016116,2]
[406365891,1771809031740,-55.61971504,0.00016116,2]
[406365892,1771809031751,-444.38028496,0.00016116,2]
[406365893,1771809031759,-150.0,0.00016116,2]
[406365895,1771809031768,-150.0,0.00016116,2]
[406365896,1771809031775,-150.0,0.00016116,2]
[406365897,1771809031783,-46.00277518,0.00016116,2]
[406365900,1771809031793,-103.99722482,0.00016116,2]
[406365902,1771809031801,-494.56277518,0.00016116,2]
[406365905,1771809031812,-5.43722482,0.00016116,2]
[406365909,1771809031822,-500.0,0.00016116,2]
[406365911,1771809031831,-150.0,0.00016116,2]
[406365914,1771809031841,-500.0,0.00016171,2]
[406365916,1771809031851,-150.0,0.00016171,2]
[406365917,1771809031864,-255.03716357,0.00016171,2]
[406365918,1771809031878,-244.96283643,0.00016171,2]
[406365920,1771809031889,-500.0,0.00016171,2]
[406365921,1771809031899,-155.82369497,0.00016171,2]
[406365922,1771809031911,-150.0,0.00016171,2]
[406365923,1771809031920,-151.93440343,0.00016171,2]
[406365924,1771809031930,-150.0,0.00016171,2]
[406365925,1771809031941,-505.05471276,0.00016171,2]
[406365926,1771809031951,-500.0,0.00016171,2]
[406365927,1771809031963,-150.0,0.00016171,2]
[406365928,1771809031973,-300.0,0.00016188,2]
[406365929,1771809031984,-500.0,0.00016189,2]
[406365930,1771809031994,-290.97152957,0.00016189,2]
[406365931,1771809032004,-153.04451259,0.00016189,2]
[406365932,1771809032014,-223.41584787,0.00016189,2]
[406365933,1771809032023,-500.0,0.00016189,2]
[406365934,1771809032032,-500.0,0.00016189,2]
[406365935,1771809032070,-500.0,0.00016189,2]
[406365936,1771809032081,-404.38214481,0.00016189,2]
[406365937,1771809032091,-393.89924302,0.00016189,2]
[406365938,1771809032208,-106.10075698,0.00016189,2]
[406365939,1771809032230,-369.82570726,0.00016189,2]
[406365940,1771809032251,-500.0,0.00016189,2]
[406365941,1771809032274,-37.16036268,0.00016189,2]
[406365942,1771809032300,-462.83963732,0.00016189,2]
[406365943,1771809032324,-500.0,0.00016189,2]
[406365944,1771809032347,-500.0,0.00016189,2]
[406365945,1771809032369,-500.0,0.00016189,2]
[406365946,1771809032393,-546.1699496,0.00016189,2]
[406365947,1771809032415,-500.0,0.00016189,2]
[406365948,1771809032433,-500.0,0.00016189,2]
[406365949,1771809032444,-263.7555946,0.00016189,2]
[406365950,1771809032453,-499.99999999,0.00016189,2]
[406365951,1771809032463,-91433.03159431,0.0001619,2]
[406365952,1771809032474,-18747.05099839,0.0001619,2]
[406365953,1771809032486,-19278.12872617,0.0001619,2]
[406365954,1771809032497,-408.2574532,0.0001619,2]
[406365955,1771809032508,-323.3292545,0.0001619,2]
[406365956,1771809032519,-1351.6,0.0001619,2]
[406365957,1771809032531,-2458.125,0.0001619,2]
[406365958,1771809032558,-304.03423716,0.0001619,2]
[406365959,1771809032569,-2454.02564704,0.0001619,2]
[406365960,1771809032581,-607.56498033,0.0001619,2]
[406365961,1771809032593,-371.65095903,0.0001619,2]
[406365962,1771809032604,-1258.9,0.0001619,2]
[406365963,1771809032616,-1262.12334324,0.0001619,2]
[406365978,1771809037586,-163374.88749152,0.0001619,2]
[406365979,1771809037598,-1017.65327637,0.0001619,2]
[406365980,1771809037631,-2031.0,0.0001619,2]
[406365981,1771809037642,-18758.93098925,0.0001619,2]
[406365982,1771809037700,-202257.02808765,0.0001619,2]
[406365983,1771809037712,-285.19460551,0.0001619,2]
[406365984,1771809037724,-3115.8047972,0.0001619,2]
[406365985,1771809037762,-6577.9,0.0001619,2]
[406365986,1771809037820,-608.20585069,0.0001619,2]
[406366098,1771809039721,-850.10682554,0.0001619,2]
[406366099,1771809039733,-2591.33274865,0.0001619,2]
[406366100,1771809039795,-31137.33494014,0.0001619,2]
[406366101,1771809039817,-2927136.79819411,0.0001619,2]
[406366102,1771809039827,-939.53045993,0.000162,2]
[406366103,1771809039836,-4129.7286,0.000162,2]
[406366104,1771809039845,-51848.3901,0.000162,2]
[406366105,1771809039855,-2500.0,0.000162,2]
[406366106,1771809039868,-5307.8847,0.000162,2]
[406366107,1771809039880,-481634.914,0.000162,2]
[406366108,1771809039889,-528.6,0.00016218,2]
[406366109,1771809039900,-500.0,0.00016226,2]
[406366110,1771809039911,-150.0,0.00016226,2]
[406366111,1771809039921,-300.0,0.00016226,2]
[406366112,1771809039930,-300.0,0.00016226,2]
[406366113,1771809039940,-150.0,0.00016226,2]
[406366114,1771809039950,-150.0,0.00016226,2]
[406366115,1771809039960,-155.09334338,0.00016226,2]
[406366116,1771809039970,-500.0,0.00016226,2]
[406366117,1771809039979,-285.7342369,0.0001628,2]
[406366118,1771809039989,-150.0,0.0001628,2]
[406366119,1771809039998,-150.0,0.0001628,2]
[406366120,1771809040013,-150.0,0.0001628,2]
[406366121,1771809040022,-34891.35066751,0.0001629,2]
[406366122,1771809040032,-151.0,0.0001629,2]
[406366123,1771809040041,-151.0,0.0001629,2]
[406366124,1771809040051,-151.0,0.0001629,2]
[406366125,1771809040072,-151.0,0.0001629,2]
[406366126,1771809040082,-151.0,0.0001629,2]
[406366127,1771809040091,-200.0,0.0001629,2]
[406366128,1771809040100,-151.0,0.0001629,2]
[406366129,1771809040110,-151.0,0.0001629,2]
[406366130,1771809040120,-151.0,0.0001629,2]
[406366131,1771809040129,-151.0,0.0001629,2]
[406366132,1771809040139,-151.0,0.0001629,2]
[406366133,1771809040148,-151.0,0.0001629,2]
[406366134,1771809040159,-151.0,0.0001629,2]
[406366135,1771809040169,-151.0,0.0001629,2]
[406366136,1771809040178,-151.0,0.0001629,2]
[406366137,1771809040188,-151.0,0.0001629,2]
[406366138,1771809040197,-151.0,0.0001629,2]
[406366139,1771809040207,-151.0,0.0001629,2]
[406366140,1771809040216,-151.0,0.0001629,2]
[406366141,1771809040225,-151.0,0.0001629,2]
[406366142,1771809040235,-151.0,0.0001629,2]
[406366145,1771809040439,-500.0,0.0001629,2]
[406366146,1771809040447,-6640.0108,0.000163,2]
[406366147,1771809040457,-150.0,0.00016335,2]
[406366148,1771809040466,-150.0,0.00016335,2]
[406366149,1771809040475,-200.0,0.00016335,2]
[406366150,1771809040483,-250.0,0.0001639,2]
[406366151,1771809040492,-500.0,0.00016399,2]
[406366152,1771809040501,-500.0,0.00016399,2]
[406366153,1771809040510,-1852.42,0.00016492,2]
[406366154,1771809040519,-1000.0,0.000165,2]
[406366155,1771809040528,-4084.2084,0.000165,2]
[406366156,1771809040536,-500.0,0.00016699,2]
[406366157,1771809040546,-500.0,0.00016699,2]
[406366158,1771809040565,-160.38,0.00016832,2]
[406366159,1771809040575,-369.06,0.00016922,2]
[406366160,1771809040585,-9999.99,0.00016922,2]
[406366161,1771809040595,-308.50179788,0.00017,2]
[406366162,1771809040605,-195.0,0.00017259,2]
[406366163,1771809040615,-600.0,0.00017259,2]
[406366164,1771809040624,-2411.64893281,0.00017259,2]
[406366165,1771809040634,-3240.0,0.00017391,2]
[406366166,1771809040643,-637.54895458,0.00017808,2]
[406366167,1771809040652,-637.54895458,0.00017808,2]
[406366168,1771809040663,-637.54895458,0.00017808,2]
[406366169,1771809040673,-637.54895458,0.00017808,2]
[406366170,1771809040682,-637.54895458,0.00017808,2]
[406366171,1771809040691,-637.54895458,0.00017808,2]
[406366172,1771809040702,-637.54895458,0.00017808,2]
[406366173,1771809040711,-637.54895458,0.00017808,2]
[406366174,1771809040721,-637.54895458,0.00017808,2]
[406366175,1771809040731,-637.54895458,0.00017808,2]
[406366176,1771809040740,-637.54895458,0.00017808,2]
[406366177,1771809040751,-637.54895458,0.00017808,2]
[406366178,1771809040760,-637.54895458,0.00017808,2]
[406366179,1771809040770,-637.54895458,0.00017808,2]
[406366180,1771809040780,-637.54895458,0.00017808,2]
[406366181,1771809040790,-637.54895458,0.00017808,2]
[406366182,1771809040800,-637.54895458,0.00017808,2]
[406366183,1771809040818,-688.55287094,0.00017808,2]
[406366184,1771809040828,-688.55287094,0.00017808,2]
[406366185,1771809040838,-688.55287094,0.00017808,2]
[406366186,1771809040847,-688.55287094,0.00017808,2]
[406366187,1771809040857,-688.55287094,0.00017808,2]
[406366188,1771809040871,-688.55287094,0.00017808,2]
[406366189,1771809040881,-688.55287094,0.00017808,2]
[406366190,1771809040891,-688.55287094,0.00017808,2]
[406366191,1771809040900,-688.55287094,0.00017808,2]
[406366192,1771809040911,-433.59,0.00017968,2]
[406366193,1771809040925,-30946.5574031,0.00017996,2]
[406366194,1771809040934,-883.294836,0.00017996,2]
[406366195,1771809040944,-64664.2614862,0.00017999,2]
[406366196,1771809040954,-8492.760166,0.00017999,2]
[406366197,1771809040964,-3020.4581848,0.00017999,2]
[406366198,1771809040973,-896901.72920538,0.00018,2]
[406366199,1771809040983,-200.0,0.00018,2]
[406366200,1771809040994,-199.95036559,0.00018,2]
[406366201,1771809041003,-200.0,0.00018,2]
[406366202,1771809041013,-1008.12,0.00018023,2]
[406366203,1771809041022,-433.60578979,0.00018125,2]
[406366204,1771809041033,-200.0,0.0001818,2]
[406366205,1771809041043,-160.0,0.00018326,2]
[406366206,1771809041054,-173.78509278,0.00018326,2]
[406366207,1771809041070,-1885.6,0.00018356,2]
[406366208,1771809041079,-200.0,0.00018362,2]
[406366209,1771809041088,-166.66,0.00018496,2]
[406366210,1771809041098,-200.0,0.00018545,2]
[406366211,1771809041107,-200.0,0.00018731,2]
[406366212,1771809041116,-166.66,0.00019087,2]
[406366213,1771809041125,-194.98,0.00019087,2]
[406366214,1771809041135,-160.9,0.0001943,2]
[406366215,1771809041144,-166.66,0.00019678,2]
[406366216,1771809041153,-150.0,0.00020028,2]
[406366217,1771809041163,-255.55230224,0.00020028,2]
[406366218,1771809041172,-152.5047455,0.00020028,2]
[406366219,1771809041181,-150.0,0.00020028,2]
[406366220,1771809041190,-150.0,0.00020083,2]
[406366221,1771809041199,-200.0,0.00020138,2]
[406366222,1771809041208,-166.66,0.00020269,2]
[406366223,1771809041217,-342.5086222,0.00020273,2]
[406366224,1771809041227,-1008.12,0.00020276,2]
[406366225,1771809041235,-6905.1103093,0.00020298,2]
[406366226,1771809041244,-14428.5470212,0.00020301,2]
[406366227,1771809041254,-1894.9909359,0.00020301,2]
[406366228,1771809041263,-673.9553185,0.00020311,2]
[406366229,1771809041273,-1540.7383691,0.00020812,2]
[406366230,1771809041282,-3219.4440075,0.00020815,2]
[406366231,1771809041292,-422.829631,0.00020815,2]
[406366232,1771809041301,-194.98,0.00020823,2]
[406366233,1771809041319,-150.3797581,0.00020827,2]
[406366234,1771809041328,-166.66,0.0002086,2]
[406366235,1771809041338,-168.23,0.00021121,2]
[406366236,1771809041347,-39252.24492321,0.0002173,2]
[406366237,1771809041356,-5000.0,0.00021918,2]
[406366238,1771809041365,-5217.93979931,0.00022,4]
[406366239,1771809041375,-2640.62,0.00022,2]
[406366240,1771809041384,-1008.12,0.00022529,2]
[406366241,1771809041393,-500.0,0.00022699,2]
[406366242,1771809041403,-500.0,0.00022699,2]
[406366243,1771809041412,-500.0,0.00022699,2]
[406366244,1771809041421,-500.0,0.00022699,2]
[406366245,1771809041430,-500.0,0.00022699,2]
[406366246,1771809041441,-500.0,0.00022699,2]
[406366247,1771809041450,-500.0,0.00022699,2]
[406366248,1771809041459,-500.0,0.00022699,2]
[406366249,1771809041468,-500.0,0.00022699,2]
[406366250,1771809041478,-500.0,0.00022699,2]
[406366251,1771809041487,-500.0,0.00022699,2]
[406366252,1771809041496,-525.13346204,0.00022699,2]
[406366253,1771809041505,-500.0,0.00022699,2]
[406366254,1771809041514,-351.64176428,0.00022699,2]
[406366255,1771809041524,-500.0,0.00022699,2]
[406366256,1771809041535,-500.0,0.00022699,2]
[406366257,1771809041544,-500.0,0.00022699,2]
[406366258,1771809041555,-500.0,0.00022699,2]
[406366259,1771809041568,-500.0,0.00022699,2]
[406366260,1771809041577,-500.0,0.00022699,2]
[406366261,1771809041587,-500.0,0.00022699,2]
[406366262,1771809041596,-500.0,0.00022699,2]
[406366263,1771809041606,-500.0,0.00022699,2]
[406366264,1771809041615,-500.0,0.00022699,2]
[406366265,1771809041624,-500.0,0.00022699,2]
[406366266,1771809041633,-500.0,0.00022699,2]
[406366267,1771809041642,-500.0,0.00022699,2]
[406366268,1771809041651,-500.0,0.00022699,2]
[406366269,1771809041661,-500.0,0.00022699,2]
[406366270,1771809041670,-530.92405592,0.00022699,2]
[406366271,1771809041680,-163.29425341,0.000227,2]
[406366272,1771809041690,-162.75273669,0.000227,2]
[406366273,1771809041700,-160.0,0.00023,2]
[406366274,1771809041710,-476.95,0.00023775,2]
[406366275,1771809041719,-1000.0,0.00023787,2]
[406366276,1771809041728,-342.5086222,0.00024447,2]
[406366277,1771809041737,-1000.0,0.00024658,2]
[406366278,1771809041747,-150.0,0.00024658,2]
[406366279,1771809041756,-1008.12,0.00024782,120]
[406366280,1771809041766,-181.2,0.00025637,2]
[406366281,1771809041775,-150.0,0.0002589,2]
[406366282,1771809041784,-11000.0,0.00026,30]
[406366283,1771809041794,-160.0,0.00026,30]
[406366284,1771809041806,-166.66,0.00026013,30]
[406366285,1771809041821,-1282.6,0.00026191,2]
[406366286,1771809041830,-164.26,0.0002645,30]
[406366287,1771809041840,-2640.62,0.000265,2]
[406366288,1771809041849,-166.66,0.00026561,30]
[406366289,1771809041859,-176.3781679,0.0002682,2]
[406366290,1771809041869,-1008.12,0.00027035,120]
[406366291,1771809041883,-166.66,0.00027109,30]
[406366292,1771809041893,-150.0,0.00027185,2]
[406366293,1771809041902,-1000.0,0.00027397,20]
[406366294,1771809041913,-300.0,0.00027397,2]
[406366295,1771809041923,-166.66,0.00027656,30]
[406366296,1771809041933,-166.66,0.00028204,30]
[406366297,1771809041942,-150.0,0.00028544,2]
[406366298,1771809041953,-342.5086222,0.00028621,2]
[406366299,1771809041963,-166.66,0.00028752,30]
[406366300,1771809041972,-2000.0,0.00029,2]
[406366301,1771809041981,-150.0,0.00029971,2]
[406366302,1771809041991,-459.36755563,0.00030708,2]
[406366303,1771809042000,-150.0,0.0003147,2]
[406366304,1771809042009,-150.0,0.000315,2]
[406366305,1771809042019,-2640.62,0.000315,2]
[406366306,1771809042028,-2000.0,0.000327,2]
[406366307,1771809042037,-342.5086222,0.00032795,2]
[406366308,1771809042047,-500.0,0.00032877,2]
[406366309,1771809042063,-500.0,0.00032877,2]
[406366310,1771809042073,-500.0,0.00032877,2]
[406366311,1771809042083,-500.0,0.00032877,2]
[406366312,1771809042092,-500.0,0.00032877,2]
[406366313,1771809042101,-372.93950921,0.00032877,2]
[406366314,1771809042110,-4051.31725922,0.00033,13]
[406366315,1771809042119,-150.0,0.00033043,2]
[406366316,1771809042128,-319.36,0.000331,2]
[406366317,1771809042138,-150.0,0.00034696,2]
[406366318,1771809042147,-1000.0,0.00035417,2]
[406366319,1771809042156,-1000.0,0.00035417,2]
[406366320,1771809042165,-1000.0,0.00035417,2]
[406366321,1771809042174,-1000.0,0.00035417,2]
[406366322,1771809042184,-1000.0,0.00035417,2]
[406366323,1771809042193,-476.95,0.00035556,2]
[406366324,1771809042203,-227.64592035,0.0003561,120]
[406366325,1771809042213,-500.0,0.00035616,7]
[406366326,1771809042223,-459.0262979,0.00035616,7]
[406366327,1771809042232,-181.0,0.00036,30]
[406366328,1771809042242,-164.0,0.00036,30]
[406366329,1771809042253,-6942.0,0.00036161,5]
[406366330,1771809042263,-164.26,0.00036235,30]
[406366331,1771809042273,-2000.0,0.000364,2]
[406366332,1771809042283,-150.0,0.0003643,2]
[406366333,1771809042292,-1210.0,0.00036452,2]
[406366334,1771809042317,-2454.0,0.00036468,2]
[406366335,1771809042328,-5977.0,0.00036468,2]
[406366336,1771809042338,-413.0,0.00036468,2]
[406366337,1771809042349,-2640.62,0.000365,2]
[406366338,1771809042359,-474.0,0.00036896,30]
[406366339,1771809042370,-1101.0,0.00036896,30]
[406366340,1771809042381,-342.5086222,0.00036969,2]
[406366341,1771809042396,-162.0,0.00037,45]
[406366342,1771809042407,-162.0,0.00037,30]
[406366343,1771809042417,-165.0,0.00037,7]
[406366344,1771809042427,-558.95850289,0.00037,30]
[406366345,1771809042440,-40922.55604739,0.00037238,7]
[406366346,1771809042452,-4375.42,0.00038,60]
[406366348,1771809042463,-353118.80975442,0.000381,33]
[406366350,1771809042476,-150.0,0.00038252,2]
[406366352,1771809042489,-693.3919763,0.00038841,2]
[406366355,1771809042501,-719.04747942,0.00038896,2]
[406366357,1771809042512,-745.65223616,0.00038951,2]
[406366359,1771809042523,-162.0,0.00039,60]
[406366361,1771809042533,-162.0,0.00039,30]
[406366363,1771809042544,-162.0,0.00039,60]
[406366365,1771809042556,-166.73,0.00039,10]
[406366367,1771809042573,-773.2413689,0.00039006,2]
[406366369,1771809042584,-801.85129955,0.00039061,2]
[406366371,1771809042595,-831.51979763,0.00039116,2]
[406366373,1771809042606,-862.28603014,0.00039171,2]
[406366377,1771809042618,-894.19061326,0.00039226,2]
[406366381,1771809042628,-927.27566595,0.00039281,2]
[406366383,1771809042639,-961.58486559,0.00039336,2]
[406366387,1771809042650,-997.16350561,0.00039391,2]
[406366390,1771809042661,-1210.0,0.00039452,2]
[406366392,1771809042674,-2454.0,0.00039468,2]
[406366394,1771809042685,-5977.0,0.00039468,2]
[406366397,1771809042697,-150.0,0.00039476,2]
[406366399,1771809042708,-200.0,0.00039476,2]
[406366400,1771809042719,-150.0,0.00039476,2]
[406366402,1771809042730,-150.0,0.00039476,2]
[406366404,1771809042740,-150.0,0.00039476,2]
[406366406,1771809042752,-1040.0,0.00039476,2]
[406366408,1771809042763,-618.0,0.00039476,2]
[406366410,1771809042773,-3494.0,0.00039476,2]
[406366411,1771809042785,-1276.0,0.00039476,2]
[406366413,1771809042795,-1595.33,0.00039481,55]
[406366415,1771809042816,-152.0,0.00039899,3]
[406366417,1771809042827,-10000.0,0.0004,120]
[406366419,1771809042837,-160.0,0.0004,120]
[406366420,1771809042847,-2000.0,0.000401,2]
[406366421,1771809042857,-2640.62,0.000401,2]
[406366422,1771809042871,-150.0,0.00040165,2]
[406366423,1771809042882,-306.05328416,0.00040891,2]
[406366424,1771809042893,-300.0,0.00040891,2]
[406366425,1771809042907,-306.05328416,0.00040891,2]
[406366426,1771809042919,-300.0,0.00040891,2]
[406366427,1771809042930,-306.05328416,0.00040891,2]
[406366428,1771809042941,-300.0,0.00040891,2]
[406366429,1771809042954,-306.05328416,0.00040891,2]
[406366430,1771809042964,-300.0,0.00040891,2]
[406366431,1771809042977,-307.87515375,0.00040891,2]